[Event "*** Titled Tuesday Blitz"]
[Site "Chess.com"]
[Date "2020.11.24"]
[Round "2"]
[White "MF1966Idrisov"]
[Black "HouseOfDurin"]
[Result "1-0"]
[WhiteElo "2413"]
[BlackElo "2127"]
[TimeControl "180+1"]
[EndTime "10:35:04 PST"]
[Termination "MF1966Idrisov won on time"]

1. Nf3 {[%clk 0:03:00.9]} 1... c5 {[%clk 0:02:59.9]} 2. b3 {[%clk 0:03:01]} 2...
Nc6 {[%clk 0:03:00.2]} 3. Bb2 {[%clk 0:03:01.5]} 3... d6 {[%clk 0:03:00.4]} 4.
d4 {[%clk 0:03:01.9]} 4... cxd4 {[%clk 0:02:59.5]} 5. Nxd4 {[%clk 0:03:02.1]}
5... Nf6 {[%clk 0:02:59.1]} 6. g3 {[%clk 0:03:01.6]} 6... g6 {[%clk 0:02:58.3]}
7. Bg2 {[%clk 0:03:01.5]} 7... Bd7 {[%clk 0:02:57.7]} 8. O-O {[%clk 0:03:01.6]}
8... Bg7 {[%clk 0:02:57.2]} 9. c4 {[%clk 0:03:01.7]} 9... O-O {[%clk 0:02:56.3]}
10. Nc3 {[%clk 0:03:02.1]} 10... Nxd4 {[%clk 0:02:42.1]} 11. Qxd4 {[%clk
0:03:01]} 11... Bc6 {[%clk 0:02:42]} 12. Nd5 {[%clk 0:03:00.6]} 12... Nh5 {[%clk
0:02:35.5]} 13. Qd2 {[%clk 0:03:00.2]} 13... e6 {[%clk 0:02:30.1]} 14. Bxg7
{[%clk 0:02:57.7]} 14... Nxg7 {[%clk 0:02:29.7]} 15. Ne3 {[%clk 0:02:56.6]}
15... Bxg2 {[%clk 0:02:29.4]} 16. Kxg2 {[%clk 0:02:56.4]} 16... Qc7 {[%clk
0:02:16.1]} 17. Rfd1 {[%clk 0:02:55.3]} 17... Rad8 {[%clk 0:02:10.4]} 18. Ng4
{[%clk 0:02:49.8]} 18... f5 {[%clk 0:02:09.6]} 19. Ne3 {[%clk 0:02:44.6]} 19...
Rf7 {[%clk 0:02:03.6]} 20. Qb4 {[%clk 0:02:39.5]} 20... Rfd7 {[%clk 0:02:03.2]}
21. Rd3 {[%clk 0:02:36.5]} 21... Qc5 {[%clk 0:01:53.3]} 22. Qd2 {[%clk
0:02:28.1]} 22... Ne8 {[%clk 0:01:43]} 23. Rd1 {[%clk 0:02:27.3]} 23... Nf6
{[%clk 0:01:41.4]} 24. f3 {[%clk 0:02:23.5]} 24... d5 {[%clk 0:01:40.8]} 25.
cxd5 {[%clk 0:02:14]} 25... Nxd5 {[%clk 0:01:41.7]} 26. Nc4 {[%clk 0:02:00.5]}
26... b5 {[%clk 0:01:24.4]} 27. Nb2 {[%clk 0:01:07.5]} 27... f4 {[%clk
0:00:42.8]} 28. gxf4 {[%clk 0:01:04]} 28... Qc7 {[%clk 0:00:15.6]} 29. e3 {[%clk
0:00:58.4]} 29... Nb6 {[%clk 0:00:13.6]} 30. Rxd7 {[%clk 0:00:55.9]} 30... Rxd7
{[%clk 0:00:14.5]} 31. Qe2 {[%clk 0:00:55.9]} 31... Qc3 {[%clk 0:00:11.9]} 32.
Rxd7 {[%clk 0:00:53.6]} 32... Nxd7 {[%clk 0:00:12.8]} 33. Nd3 {[%clk 0:00:53.6]}
33... b4 {[%clk 0:00:11.5]} 34. h4 {[%clk 0:00:52]} 34... Kf7 {[%clk 0:00:10.3]}
35. Nf2 {[%clk 0:00:46.1]} 35... Ke7 {[%clk 0:00:09.8]} 36. Ne4 {[%clk
0:00:45.6]} 36... Qc6 {[%clk 0:00:08.1]} 37. Qc4 {[%clk 0:00:44.4]} 37... Qxc4
{[%clk 0:00:05.9]} 38. bxc4 {[%clk 0:00:44.3]} 38... Nb6 {[%clk 0:00:06.4]} 39.
c5 {[%clk 0:00:38]} 39... Nd5 {[%clk 0:00:07]} 40. Kf2 {[%clk 0:00:37.4]} 40...
a5 {[%clk 0:00:07.5]} 41. Ke2 {[%clk 0:00:37.4]} 41... a4 {[%clk 0:00:08]} 42.
Kd2 {[%clk 0:00:37.4]} 42... b3 {[%clk 0:00:08.1]} 43. axb3 {[%clk 0:00:37.5]}
43... axb3 {[%clk 0:00:09]} 44. Nc3 {[%clk 0:00:33.9]} 44... b2 {[%clk
0:00:06.8]} 45. Nb1 {[%clk 0:00:31.4]} 45... Kd7 {[%clk 0:00:05.1]} 46. e4
{[%clk 0:00:31.3]} 46... Nxf4 {[%clk 0:00:04.6]} 47. Kc3 {[%clk 0:00:31.2]}
47... Kc6 {[%clk 0:00:04.7]} 48. Kxb2 {[%clk 0:00:30.4]} 48... Ng2 {[%clk
0:00:04.9]} 49. Kc3 {[%clk 0:00:29.5]} 49... Kxc5 {[%clk 0:00:03.9]} 50. Nd2
{[%clk 0:00:23.8]} 50... Nxh4 {[%clk 0:00:03.8]} 51. Kd3 {[%clk 0:00:24.3]}
51... g5 {[%clk 0:00:03.6]} 52. Ke3 {[%clk 0:00:24.4]} 52... Ng6 {[%clk
0:00:04.1]} 53. Nb3+ {[%clk 0:00:23.3]} 53... Kd6 {[%clk 0:00:04.1]} 54. Nd4
{[%clk 0:00:23.5]} 54... Ke5 {[%clk 0:00:04.6]} 55. Nc6+ {[%clk 0:00:23.5]}
55... Kf6 {[%clk 0:00:04.8]} 56. Kd4 {[%clk 0:00:21.4]} 56... e5+ {[%clk
0:00:03.8]} 57. Kd5 {[%clk 0:00:19.6]} 57... h5 {[%clk 0:00:04.7]} 58. Nb8
{[%clk 0:00:16.8]} 58... Nf4+ {[%clk 0:00:02.9]} 59. Kd6 {[%clk 0:00:14.2]}
59... h4 {[%clk 0:00:03.4]} 60. Nd7+ {[%clk 0:00:14.7]} 60... Kg6 {[%clk
0:00:03.3]} 61. Nxe5+ {[%clk 0:00:14.9]} 61... Kh5 {[%clk 0:00:04]} 62. Ng4
{[%clk 0:00:15.2]} 62... h3 {[%clk 0:00:04.2]} 63. Ke5 {[%clk 0:00:14.7]} 63...
Ng6+ {[%clk 0:00:04.4]} 64. Kf5 {[%clk 0:00:14.2]} 64... Nh4+ {[%clk 0:00:04]}
65. Kf6 {[%clk 0:00:12.9]} 65... Nxf3 {[%clk 0:00:04.9]} 66. e5 {[%clk
0:00:13.1]} 66... Kxg4 {[%clk 0:00:04]} 67. e6 {[%clk 0:00:12.9]} 67... Nd4
{[%clk 0:00:03.2]} 68. e7 {[%clk 0:00:12]} 68... h2 {[%clk 0:00:01.6]} 69. e8=Q
{[%clk 0:00:11.4]} 69... h1=Q {[%clk 0:00:02.5]} 70. Qd7+ {[%clk 0:00:11.5]}
70... Kg3 {[%clk 0:00:02.1]} 71. Qxd4 {[%clk 0:00:10.9]} 71... Qf3+ {[%clk
0:00:01.5]} 72. Kxg5 {[%clk 0:00:10.4]} 1-0

[Event "*** Titled Tuesday Blitz"]
[Site "Chess.com"]
[Date "2020.11.24"]
[Round "2"]
[White "AungTZ"]
[Black "Zmeeed63"]
[Result "1-0"]
[WhiteElo "2120"]
[BlackElo "2385"]
[TimeControl "180+1"]
[EndTime "10:35:05 PST"]
[Termination "AungTZ won on time"]

1. e4 {[%clk 0:03:00.9]} 1... c5 {[%clk 0:01:25.8]} 2. Nf3 {[%clk 0:03:00]} 2...
Nf6 {[%clk 0:01:25.9]} 3. Nc3 {[%clk 0:02:58.9]} 3... d5 {[%clk 0:01:25.8]} 4.
e5 {[%clk 0:02:58.4]} 4... Ng8 {[%clk 0:01:25.9]} 5. Bb5+ {[%clk 0:02:57.4]}
5... Nc6 {[%clk 0:01:21.3]} 6. d4 {[%clk 0:02:54.8]} 6... Bg4 {[%clk 0:01:19.6]}
7. dxc5 {[%clk 0:02:52.2]} 7... e6 {[%clk 0:01:19.6]} 8. O-O {[%clk 0:02:48.4]}
8... Bxc5 {[%clk 0:01:19.1]} 9. Qd3 {[%clk 0:02:39.8]} 9... Ne7 {[%clk
0:01:15.6]} 10. Ne2 {[%clk 0:02:29.3]} 10... O-O {[%clk 0:01:12]} 11. Ng5 {[%clk
0:02:28.9]} 11... Bf5 {[%clk 0:01:11.4]} 12. Qc3 {[%clk 0:02:23.6]} 12... Qb6
{[%clk 0:01:07.6]} 13. Bd3 {[%clk 0:02:13.1]} 13... Bb4 {[%clk 0:00:51.7]} 14.
Qb3 {[%clk 0:02:13]} 14... Nxe5 {[%clk 0:00:48.3]} 15. Bxf5 {[%clk 0:02:10.5]}
15... Nxf5 {[%clk 0:00:49.2]} 16. Qh3 {[%clk 0:01:55.9]} 16... h6 {[%clk
0:00:47]} 17. Nf3 {[%clk 0:01:52.4]} 17... Nxf3+ {[%clk 0:00:45.9]} 18. Qxf3
{[%clk 0:01:52.2]} 18... Rac8 {[%clk 0:00:45]} 19. c3 {[%clk 0:01:52.1]} 19...
Bc5 {[%clk 0:00:45.3]} 20. a4 {[%clk 0:01:47.7]} 20... Rfd8 {[%clk 0:00:39]} 21.
a5 {[%clk 0:01:47.5]} 21... Qb5 {[%clk 0:00:36.4]} 22. Nf4 {[%clk 0:01:35.2]}
22... a6 {[%clk 0:00:32.6]} 23. Nh5 {[%clk 0:01:34.1]} 23... d4 {[%clk
0:00:25.6]} 24. g4 {[%clk 0:01:27]} 24... Ne7 {[%clk 0:00:21.3]} 25. Bxh6 {[%clk
0:01:22.6]} 25... Qc6 {[%clk 0:00:11.3]} 26. Qxc6 {[%clk 0:01:16.7]} 26... Nxc6
{[%clk 0:00:12.2]} 27. Bxg7 {[%clk 0:01:16.6]} 27... d3 {[%clk 0:00:04.2]} 28.
Rfd1 {[%clk 0:01:16.5]} 28... Be7 {[%clk 0:00:03.3]} 29. Bh6 {[%clk 0:01:14.5]}
29... Rd5 {[%clk 0:00:03.3]} 30. Be3 {[%clk 0:01:12.7]} 30... Rxa5 {[%clk
0:00:03.6]} 31. Rxa5 {[%clk 0:01:10.5]} 31... Nxa5 {[%clk 0:00:04.5]} 32. Rxd3
{[%clk 0:01:10]} 32... Nc4 {[%clk 0:00:05.1]} 33. Bc1 {[%clk 0:01:09.5]} 33...
Rd8 {[%clk 0:00:03.7]} 34. Rxd8+ {[%clk 0:01:07.2]} 34... Bxd8 {[%clk
0:00:04.6]} 35. Ng3 {[%clk 0:01:05.6]} 35... Ne5 {[%clk 0:00:04.7]} 36. h3
{[%clk 0:01:04.8]} 36... Nd3 {[%clk 0:00:05.2]} 37. Ne2 {[%clk 0:01:00.8]} 37...
b5 {[%clk 0:00:04.7]} 38. b4 {[%clk 0:00:53.9]} 38... Bb6 {[%clk 0:00:04.8]} 39.
Be3 {[%clk 0:00:52.6]} 39... Bc7 {[%clk 0:00:02.8]} 40. Kg2 {[%clk 0:00:49.9]}
40... Be5 {[%clk 0:00:02.8]} 41. Kf3 {[%clk 0:00:47.8]} 41... f5 {[%clk
0:00:01.6]} 42. gxf5 {[%clk 0:00:44.5]} 42... exf5 {[%clk 0:00:02.5]} 43. Bd4
{[%clk 0:00:42.6]} 43... Bd6 {[%clk 0:00:02.8]} 44. h4 {[%clk 0:00:39.7]} 44...
Kf7 {[%clk 0:00:02.8]} 45. h5 {[%clk 0:00:39.4]} 45... Nb2 {[%clk 0:00:03.1]}
46. Ng3 {[%clk 0:00:37.1]} 46... Ke6 {[%clk 0:00:02.7]} 47. h6 {[%clk
0:00:36.5]} 47... Nc4 {[%clk 0:00:01.7]} 48. h7 {[%clk 0:00:33.2]} 48... Ne5+
{[%clk 0:00:01.6]} 49. Kg2 {[%clk 0:00:29.5]} 49... Ng6 {[%clk 0:00:02]} 50.
h8=Q {[%clk 0:00:27.8]} 50... Nxh8 {[%clk 0:00:01.4]} 51. Bxh8 {[%clk
0:00:27.7]} 51... Bf8 {[%clk 0:00:01.1]} 52. Bd4 {[%clk 0:00:27.1]} 52... Kd5
{[%clk 0:00:01.6]} 53. Nf1 {[%clk 0:00:23.4]} 53... Kc4 {[%clk 0:00:01.5]} 54.
Ne3+ {[%clk 0:00:22.8]} 54... Kd3 {[%clk 0:00:02]} 55. Nxf5 {[%clk 0:00:21.9]}
55... Kc4 {[%clk 0:00:01.4]} 56. Kf3 {[%clk 0:00:21.3]} 56... Kb3 {[%clk
0:00:01.8]} 57. Ke4 {[%clk 0:00:20.8]} 57... Ka4 {[%clk 0:00:02.1]} 58. f4
{[%clk 0:00:21.2]} 58... a5 {[%clk 0:00:02.4]} 59. bxa5 {[%clk 0:00:21.2]} 59...
Kxa5 {[%clk 0:00:03.3]} 60. Ne3 {[%clk 0:00:20]} 60... b4 {[%clk 0:00:03.8]} 61.
cxb4+ {[%clk 0:00:19.5]} 61... Kxb4 {[%clk 0:00:04.7]} 62. Nd5+ {[%clk
0:00:19.4]} 62... Kc4 {[%clk 0:00:04.8]} 63. f5 {[%clk 0:00:19.5]} 63... Bh6
{[%clk 0:00:02.3]} 64. Be3 {[%clk 0:00:18.9]} 64... Bg7 {[%clk 0:00:01.9]} 65.
Bg5 {[%clk 0:00:18.7]} 65... Kb5 {[%clk 0:00:01.9]} 66. Bf6 {[%clk 0:00:18.5]}
66... Bf8 {[%clk 0:00:01.8]} 67. Ke5 {[%clk 0:00:18.6]} 67... Kc6 {[%clk
0:00:01.9]} 68. Ke6 {[%clk 0:00:18.4]} 68... Ba3 {[%clk 0:00:02.6]} 69. Nf4
{[%clk 0:00:17.6]} 69... Kc7 {[%clk 0:00:01.2]} 70. Be7 {[%clk 0:00:15.9]} 1-0

[Event "*** Titled Tuesday Blitz"]
[Site "Chess.com"]
[Date "2020.11.24"]
[Round "2"]
[White "dopolian"]
[Black "zaur-mammadov"]
[Result "1-0"]
[WhiteElo "2413"]
[BlackElo "2653"]
[TimeControl "180+1"]
[EndTime "10:35:10 PST"]
[Termination "dopolian won by checkmate"]

1. Nf3 {[%clk 0:03:00.9]} 1... d5 {[%clk 0:02:59.5]} 2. e3 {[%clk 0:02:59.7]}
2... Nf6 {[%clk 0:03:00]} 3. g3 {[%clk 0:02:59.5]} 3... c5 {[%clk 0:03:00.2]} 4.
Bg2 {[%clk 0:02:59.9]} 4... Nc6 {[%clk 0:03:00.4]} 5. c4 {[%clk 0:03:00.3]} 5...
e6 {[%clk 0:02:59.7]} 6. O-O {[%clk 0:02:58.7]} 6... Be7 {[%clk 0:02:56.8]} 7.
b3 {[%clk 0:02:56.9]} 7... O-O {[%clk 0:02:56.3]} 8. cxd5 {[%clk 0:02:57.1]}
8... b6 {[%clk 0:02:57]} 9. dxc6 {[%clk 0:02:57.1]} 9... Qc7 {[%clk 0:02:55.3]}
10. Bb2 {[%clk 0:02:56.1]} 10... Ba6 {[%clk 0:02:55.8]} 11. Re1 {[%clk 0:02:53]}
11... Rfd8 {[%clk 0:02:56.2]} 12. d4 {[%clk 0:02:53.3]} 12... cxd4 {[%clk
0:02:54.6]} 13. exd4 {[%clk 0:02:54.2]} 13... Nd5 {[%clk 0:02:53.9]} 14. Nc3
{[%clk 0:02:48]} 14... Bb4 {[%clk 0:02:47.8]} 15. Nxd5 {[%clk 0:02:47]} 15...
exd5 {[%clk 0:02:45]} 16. Re2 {[%clk 0:02:46.8]} 16... Bxe2 {[%clk 0:02:44.1]}
17. Qxe2 {[%clk 0:02:47.7]} 17... Qxc6 {[%clk 0:02:44.3]} 18. Ne5 {[%clk
0:02:41.6]} 18... Qf6 {[%clk 0:02:38.2]} 19. Rc1 {[%clk 0:02:36.5]} 19... h6
{[%clk 0:02:20.1]} 20. Rc6 {[%clk 0:02:30.1]} 20... Qf5 {[%clk 0:02:18.4]} 21.
Qc2 {[%clk 0:02:28.6]} 21... Qxc2 {[%clk 0:02:13]} 22. Rxc2 {[%clk 0:02:29.5]}
22... Rac8 {[%clk 0:02:12.1]} 23. Rxc8 {[%clk 0:02:20.8]} 23... Rxc8 {[%clk
0:02:13]} 24. Bxd5 {[%clk 0:02:06.5]} 24... Rc2 {[%clk 0:02:13.4]} 25. Nd3
{[%clk 0:02:06.3]} 25... Bd6 {[%clk 0:02:08.9]} 26. a4 {[%clk 0:01:43.6]} 26...
Kf8 {[%clk 0:02:06.3]} 27. Bc1 {[%clk 0:01:37.3]} 27... g5 {[%clk 0:01:58.5]}
28. Bc4 {[%clk 0:01:25.8]} 28... Ke7 {[%clk 0:01:54.7]} 29. Be3 {[%clk
0:01:24.3]} 29... f6 {[%clk 0:01:44.9]} 30. Kg2 {[%clk 0:01:22.8]} 30... h5
{[%clk 0:01:42.7]} 31. Ne1 {[%clk 0:01:12.2]} 31... Ra2 {[%clk 0:01:39.2]} 32.
Nf3 {[%clk 0:01:09.8]} 32... Bb4 {[%clk 0:01:32.9]} 33. h4 {[%clk 0:01:06.8]}
33... g4 {[%clk 0:01:31.7]} 34. Ng1 {[%clk 0:01:05.3]} 34... Bd2 {[%clk
0:01:23.6]} 35. Bxd2 {[%clk 0:01:00.5]} 35... Rxd2 {[%clk 0:01:24.5]} 36. Ne2
{[%clk 0:00:59.2]} 36... Kd6 {[%clk 0:01:18.4]} 37. Nf4 {[%clk 0:00:53.7]} 37...
Rxd4 {[%clk 0:01:17.3]} 38. Nxh5 {[%clk 0:00:54]} 38... Ke5 {[%clk 0:01:16.7]}
39. Nf4 {[%clk 0:00:51.4]} 39... Rd2 {[%clk 0:01:14.7]} 40. h5 {[%clk
0:00:50.2]} 40... Rd7 {[%clk 0:01:09.4]} 41. Ng6+ {[%clk 0:00:38]} 41... Kd4
{[%clk 0:00:55.3]} 42. Be6 {[%clk 0:00:36.6]} 42... Rh7 {[%clk 0:00:51.8]} 43.
Nf4 {[%clk 0:00:29.6]} 43... a6 {[%clk 0:00:51.6]} 44. Bf5 {[%clk 0:00:25.8]}
44... Rh8 {[%clk 0:00:50.2]} 45. Bg6 {[%clk 0:00:21.1]} 45... b5 {[%clk
0:00:43.9]} 46. axb5 {[%clk 0:00:21]} 46... axb5 {[%clk 0:00:44.8]} 47. Bd3
{[%clk 0:00:20.8]} 47... b4 {[%clk 0:00:43.6]} 48. Bc4 {[%clk 0:00:20.7]} 48...
Rh7 {[%clk 0:00:38]} 49. Be6 {[%clk 0:00:18.4]} 49... Kc3 {[%clk 0:00:37.2]} 50.
Nd5+ {[%clk 0:00:17.1]} 50... Kd4 {[%clk 0:00:36.9]} 51. Ne3 {[%clk 0:00:13.3]}
51... Rxh5 {[%clk 0:00:32.1]} 52. Nxg4 {[%clk 0:00:13.3]} 52... Ra5 {[%clk
0:00:29.4]} 53. Ne3 {[%clk 0:00:13]} 53... Ra6 {[%clk 0:00:28.8]} 54. Bc4 {[%clk
0:00:13]} 54... Ra7 {[%clk 0:00:27.9]} 55. Kf3 {[%clk 0:00:13.4]} 55... Ke5
{[%clk 0:00:26.7]} 56. Ng4+ {[%clk 0:00:11.6]} 56... Kd4 {[%clk 0:00:24.7]} 57.
Nxf6 {[%clk 0:00:07.7]} 57... Ra5 {[%clk 0:00:20.4]} 58. Nd5 {[%clk 0:00:05.7]}
58... Kc5 {[%clk 0:00:18.2]} 59. Ne3 {[%clk 0:00:05.7]} 59... Ra8 {[%clk
0:00:18.4]} 60. g4 {[%clk 0:00:06.1]} 60... Rf8+ {[%clk 0:00:18.9]} 61. Kg3
{[%clk 0:00:06.6]} 61... Kd4 {[%clk 0:00:19.6]} 62. g5 {[%clk 0:00:05.6]} 62...
Ke4 {[%clk 0:00:19]} 63. g6 {[%clk 0:00:05.2]} 63... Rf3+ {[%clk 0:00:16.5]} 64.
Kg2 {[%clk 0:00:03.8]} 64... Rf6 {[%clk 0:00:16.7]} 65. Bf7 {[%clk 0:00:02.6]}
65... Kd4 {[%clk 0:00:09.8]} 66. g7 {[%clk 0:00:03]} 66... Rxf7 {[%clk
0:00:09.1]} 67. g8=Q {[%clk 0:00:03.6]} 67... Rc7 {[%clk 0:00:09.7]} 68. Qc4+
{[%clk 0:00:03.6]} 68... Rxc4 {[%clk 0:00:08.9]} 69. Nxc4 {[%clk 0:00:04.5]}
69... Kc3 {[%clk 0:00:09.4]} 70. Na5 {[%clk 0:00:04.9]} 70... Kd4 {[%clk
0:00:09.8]} 71. f4 {[%clk 0:00:04.8]} 71... Kc5 {[%clk 0:00:10.3]} 72. Kg3
{[%clk 0:00:04.8]} 72... Kb5 {[%clk 0:00:10.4]} 73. Nc4 {[%clk 0:00:05.3]} 73...
Kc5 {[%clk 0:00:11.3]} 74. Kg4 {[%clk 0:00:05.3]} 74... Kd4 {[%clk 0:00:11.8]}
75. f5 {[%clk 0:00:05.6]} 75... Kc3 {[%clk 0:00:12.1]} 76. Na5 {[%clk
0:00:06.1]} 76... Kd4 {[%clk 0:00:13]} 77. f6 {[%clk 0:00:06.3]} 77... Kc5
{[%clk 0:00:13.9]} 78. f7 {[%clk 0:00:06.5]} 78... Kb5 {[%clk 0:00:14.8]} 79.
f8=Q {[%clk 0:00:07]} 79... Kxa5 {[%clk 0:00:14.9]} 80. Qc5+ {[%clk 0:00:07.4]}
80... Ka6 {[%clk 0:00:15.3]} 81. Qxb4 {[%clk 0:00:08.2]} 81... Ka7 {[%clk
0:00:16.2]} 82. Qb5 {[%clk 0:00:07.6]} 82... Ka8 {[%clk 0:00:17.1]} 83. Kf5
{[%clk 0:00:07.9]} 83... Ka7 {[%clk 0:00:18]} 84. Ke6 {[%clk 0:00:08.8]} 84...
Ka8 {[%clk 0:00:18.7]} 85. Kd7 {[%clk 0:00:09.4]} 85... Ka7 {[%clk 0:00:19.6]}
86. Kc7 {[%clk 0:00:09.6]} 86... Ka8 {[%clk 0:00:20.5]} 87. Qa6# {[%clk
0:00:10]} 1-0

[Event "*** Titled Tuesday Blitz"]
[Site "Chess.com"]
[Date "2020.11.24"]
[Round "2"]
[White "mbojan"]
[Black "mapleaff"]
[Result "1-0"]
[WhiteElo "2685"]
[BlackElo "2420"]
[TimeControl "180+1"]
[EndTime "10:35:19 PST"]
[Termination "mbojan won by checkmate"]

1. g3 {[%clk 0:03:00.9]} 1... h5 {[%clk 0:02:59.4]} 2. Nf3 {[%clk 0:03:00.3]}
2... b6 {[%clk 0:02:58.5]} 3. e4 {[%clk 0:02:55.9]} 3... Bb7 {[%clk 0:02:59.4]}
4. d3 {[%clk 0:02:54.4]} 4... e6 {[%clk 0:02:56.9]} 5. Bg2 {[%clk 0:02:54.3]}
5... Be7 {[%clk 0:02:57.1]} 6. h4 {[%clk 0:02:52.8]} 6... c5 {[%clk 0:02:55.9]}
7. Nc3 {[%clk 0:02:52.1]} 7... Nc6 {[%clk 0:02:56.1]} 8. Ne2 {[%clk 0:02:52]}
8... Nf6 {[%clk 0:02:55.9]} 9. Ng5 {[%clk 0:02:50.9]} 9... d5 {[%clk 0:02:45.6]}
10. Nf4 {[%clk 0:02:38.2]} 10... dxe4 {[%clk 0:02:44.9]} 11. Nxe4 {[%clk
0:02:32.7]} 11... Nxe4 {[%clk 0:02:43.3]} 12. Bxe4 {[%clk 0:02:31.7]} 12... g6
{[%clk 0:02:43.6]} 13. Bd2 {[%clk 0:02:03]} 13... Bf6 {[%clk 0:02:42.7]} 14. Bc3
{[%clk 0:02:03.1]} 14... Bxc3+ {[%clk 0:02:41.9]} 15. bxc3 {[%clk 0:02:03.2]}
15... Na5 {[%clk 0:02:34.9]} 16. Qe2 {[%clk 0:01:58]} 16... Bxe4 {[%clk
0:02:28.1]} 17. Qxe4 {[%clk 0:01:52.9]} 17... O-O {[%clk 0:02:25]} 18. O-O
{[%clk 0:01:51.5]} 18... Qf6 {[%clk 0:02:13.5]} 19. c4 {[%clk 0:01:40.9]} 19...
Rac8 {[%clk 0:02:11.9]} 20. Rac1 {[%clk 0:01:13]} 20... Nc6 {[%clk 0:02:09.1]}
21. c3 {[%clk 0:01:13.1]} 21... Rfd8 {[%clk 0:01:56.6]} 22. Rfe1 {[%clk
0:01:12.6]} 22... Ne7 {[%clk 0:01:55.2]} 23. Qe5 {[%clk 0:01:04.7]} 23... Qxe5
{[%clk 0:01:51.6]} 24. Rxe5 {[%clk 0:01:05.6]} 24... Nf5 {[%clk 0:01:49.5]} 25.
a4 {[%clk 0:01:04.6]} 25... Rd6 {[%clk 0:01:42.9]} 26. Re2 {[%clk 0:01:03.5]}
26... Rcd8 {[%clk 0:01:38.1]} 27. Kg2 {[%clk 0:01:03.3]} 27... Ne7 {[%clk
0:01:35]} 28. a5 {[%clk 0:01:00]} 28... Nc6 {[%clk 0:01:28]} 29. axb6 {[%clk
0:00:59.7]} 29... axb6 {[%clk 0:01:28.9]} 30. Rb1 {[%clk 0:00:59.1]} 30... Nb8
{[%clk 0:01:11.4]} 31. Ra1 {[%clk 0:00:51.6]} 31... Nc6 {[%clk 0:01:04.9]} 32.
Ra6 {[%clk 0:00:44.5]} 32... Ne7 {[%clk 0:00:58.1]} 33. Kf1 {[%clk 0:00:33.2]}
33... Kg7 {[%clk 0:00:53.1]} 34. Ra7 {[%clk 0:00:31.1]} 34... R8d7 {[%clk
0:00:51.9]} 35. Ra6 {[%clk 0:00:20.5]} 35... Kf6 {[%clk 0:00:47.3]} 36. Re3
{[%clk 0:00:17.5]} 36... e5 {[%clk 0:00:41.1]} 37. Nd5+ {[%clk 0:00:17.3]} 37...
Nxd5 {[%clk 0:00:41.3]} 38. cxd5 {[%clk 0:00:18.2]} 38... Rxd5 {[%clk
0:00:41.8]} 39. Rxb6+ {[%clk 0:00:18.6]} 39... Kg7 {[%clk 0:00:39.5]} 40. Ke2
{[%clk 0:00:18.4]} 40... Ra7 {[%clk 0:00:22.2]} 41. c4 {[%clk 0:00:17.3]} 41...
Ra2+ {[%clk 0:00:21.9]} 42. Kf3 {[%clk 0:00:17.8]} 42... Rd4 {[%clk 0:00:20.3]}
43. Rc6 {[%clk 0:00:17.2]} 43... e4+ {[%clk 0:00:18.3]} 44. dxe4 {[%clk
0:00:14.8]} 44... Rxc4 {[%clk 0:00:18.2]} 45. Kg2 {[%clk 0:00:14.2]} 45... Rcc2
{[%clk 0:00:18.1]} 46. Rf3 {[%clk 0:00:14.8]} 46... Ra7 {[%clk 0:00:17]} 47. e5
{[%clk 0:00:14.2]} 47... Re2 {[%clk 0:00:16.6]} 48. Rxc5 {[%clk 0:00:14.3]}
48... Re7 {[%clk 0:00:16.6]} 49. Re3 {[%clk 0:00:14.3]} 49... Rxe3 {[%clk
0:00:16.8]} 50. fxe3 {[%clk 0:00:15.2]} 50... Rb7 {[%clk 0:00:15.4]} 51. Kf3
{[%clk 0:00:15.7]} 51... Rb4 {[%clk 0:00:14.5]} 52. Rc7 {[%clk 0:00:15.6]} 52...
Kf8 {[%clk 0:00:14.2]} 53. e4 {[%clk 0:00:16.1]} 53... Rb3+ {[%clk 0:00:13]} 54.
Kf4 {[%clk 0:00:16.6]} 54... Rb2 {[%clk 0:00:13.2]} 55. e6 {[%clk 0:00:13.9]}
55... Rf2+ {[%clk 0:00:06.7]} 56. Kg5 {[%clk 0:00:09.1]} 56... fxe6 {[%clk
0:00:05.2]} 57. Kxg6 {[%clk 0:00:09.5]} 57... Rf3 {[%clk 0:00:04.8]} 58. Kxh5
{[%clk 0:00:04.6]} 58... Rxg3 {[%clk 0:00:05.2]} 59. e5 {[%clk 0:00:04.5]} 59...
Re3 {[%clk 0:00:05]} 60. Rc5 {[%clk 0:00:04.8]} 60... Rg3 {[%clk 0:00:04.8]} 61.
Rc4 {[%clk 0:00:05]} 61... Re3 {[%clk 0:00:04]} 62. Kg6 {[%clk 0:00:03.7]} 62...
Rxe5 {[%clk 0:00:03.6]} 63. Rc8+ {[%clk 0:00:04]} 63... Ke7 {[%clk 0:00:02.6]}
64. h5 {[%clk 0:00:04.9]} 64... Re1 {[%clk 0:00:02.8]} 65. Rc7+ {[%clk
0:00:04.5]} 65... Kd6 {[%clk 0:00:03.2]} 66. Ra7 {[%clk 0:00:05]} 66... Rg1+
{[%clk 0:00:04.1]} 67. Kf6 {[%clk 0:00:05.4]} 67... e5 {[%clk 0:00:04.5]} 68. h6
{[%clk 0:00:04.9]} 68... e4 {[%clk 0:00:04.7]} 69. h7 {[%clk 0:00:04.9]} 69...
Rh1 {[%clk 0:00:05.1]} 70. Kg7 {[%clk 0:00:05.3]} 70... Kd5 {[%clk 0:00:05.4]}
71. Ra6 {[%clk 0:00:04.9]} 71... Kd4 {[%clk 0:00:05]} 72. Rh6 {[%clk 0:00:04.4]}
72... Rxh6 {[%clk 0:00:05.3]} 73. Kxh6 {[%clk 0:00:04.7]} 73... e3 {[%clk
0:00:06.2]} 74. h8=Q+ {[%clk 0:00:05.3]} 74... Kd3 {[%clk 0:00:06.3]} 75. Qa1
{[%clk 0:00:05.8]} 75... e2 {[%clk 0:00:07.2]} 76. Qe1 {[%clk 0:00:05.6]} 76...
Ke3 {[%clk 0:00:08.1]} 77. Kh5 {[%clk 0:00:06.5]} 77... Kf3 {[%clk 0:00:09]} 78.
Kh4 {[%clk 0:00:07.4]} 78... Kg2 {[%clk 0:00:09.9]} 79. Qxe2+ {[%clk 0:00:07.3]}
79... Kh1 {[%clk 0:00:10.8]} 80. Qa2 {[%clk 0:00:07.7]} 80... Kg1 {[%clk
0:00:11.7]} 81. Kg3 {[%clk 0:00:07.2]} 81... Kf1 {[%clk 0:00:12.6]} 82. Qf2#
{[%clk 0:00:07.3]} 1-0